bitfinex-derivatives/quotes_BTCF0:USTF0_20241022
["timestamp","ask_amount","ask_price","bid_price","bid_amount"]
[1729617663515,0.26,67441.0,67437.0,0.434983]
[1729617663715,0.26,67441.0,67437.0,0.3608]
[1729617663916,0.26,67441.0,67438.0,0.074182]
[1729617664118,0.262,67441.0,67438.0,0.074182]
[1729617664320,0.002,67441.0,67437.0,0.3608]
[1729617664514,0.002,67441.0,67440.0,0.07418]
[1729617664719,0.00222556,67446.0,67437.0,0.3608]
[1729617664919,0.00222556,67446.0,67442.0,0.074178]
[1729617665309,0.00222556,67446.0,67445.0,0.074175]
[1729617666321,0.26,67465.0,67444.0,0.30358131]
[1729617666322,0.334143,67475.0,67446.0,0.518973]
[1729617666521,0.26,67475.0,67463.0,0.434955]
[1729617666722,1.574146,67472.0,67463.0,0.434955]
[1729617666933,0.074148,67470.0,67463.0,0.434955]
[1729617667114,1.5,67472.0,67463.0,0.434955]
[1729617667316,0.074144,67473.0,67463.0,0.879635]
[1729617667517,0.0398272,67464.0,67463.0,0.879635]
[1729617668014,0.0398272,67464.0,67463.0,0.3608]
[1729617668819,0.0418272,67464.0,67463.0,0.3608]
[1729617669023,0.1159812,67464.0,67463.0,0.3608]
[1729617669524,0.1119812,67464.0,67463.0,0.3608]
[1729617669718,0.1159812,67464.0,67463.0,0.3608]
[1729617669914,0.0788789,67464.0,67463.0,0.3608]
[1729617670219,0.074159,67459.0,67458.0,0.00204]
[1729617670415,0.074159,67459.0,67452.0,0.3608]
[1729617670416,0.074166,67453.0,67452.0,0.3608]
[1729617672714,0.075166,67453.0,67452.0,0.3608]
[1729617673114,0.076166,67453.0,67452.0,0.3688]
[1729617673322,0.520926,67453.0,67452.0,0.008]
[1729617673516,0.074178,67442.0,67441.0,0.3608]
[1729617673715,0.074178,67442.0,67427.0,0.0521]
[1729617673716,0.074191,67430.0,67429.0,0.3608]
[1729617674233,0.334191,67430.0,67429.0,0.3608]
[1729617674923,0.074198,67424.0,67423.0,0.3608]
[1729617675229,0.334198,67424.0,67423.0,0.3608]
[1729617675418,1.5,67434.0,67423.0,0.3608]
[1729617675620,0.074175,67445.0,67433.0,0.3608]
[1729617675819,0.26,67446.0,67443.0,0.3608]
[1729617676120,0.26,67451.0,67443.0,0.3608]
[1729617676523,0.26,67447.0,67443.0,0.3608]
[1729617676723,0.0535,67452.0,67443.0,0.3608]
[1729617677127,0.08040096,67444.0,67443.0,0.3608]
[1729617677329,0.08240096,67444.0,67443.0,0.3608]
[1729617677728,0.08140096,67444.0,67443.0,0.3608]
[1729617678616,0.07940096,67444.0,67443.0,0.3608]
[1729617678822,0.07940096,67444.0,67435.0,0.26]
[1729617678823,0.074184,67437.0,67433.0,0.3608]
[1729617679123,0.074187,67434.0,67433.0,0.3608]
[1729617680023,0.519067,67434.0,67433.0,0.3608]
[1729617680428,0.001,67434.0,67433.0,0.6278]
[1729617680625,0.001,67434.0,67433.0,0.701988]
[1729617681426,0.00222496,67444.0,67433.0,0.701988]
[1729617681427,0.00222496,67444.0,67443.0,0.074177]
[1729617681626,0.00222496,67444.0,67443.0,0.434977]
[1729617682631,0.00322496,67444.0,67443.0,0.434977]
[1729617683134,1.5,67456.0,67443.0,0.60402847]
[1729617683334,1.76,67456.0,67453.0,0.3608]
[1729617683526,0.074164,67455.0,67454.0,0.11096383]
[1729617683925,0.518924,67455.0,67454.0,0.11096383]
[1729617685041,0.074168,67451.0,67450.0,0.3608]
[1729617685336,0.334168,67451.0,67450.0,0.47122166]
[1729617685536,0.778928,67451.0,67450.0,0.07297626]
[1729617685735,1.834168,67451.0,67445.0,0.08749835]
[1729617686033,1.834168,67451.0,67443.0,0.3608]
[1729617686034,0.074176,67444.0,67443.0,0.3608]
[1729617686241,0.4448,67444.0,67443.0,0.3608]
[1729617686429,0.518976,67444.0,67443.0,0.3608]
[1729617686630,0.518976,67444.0,67429.0,0.3608]
[1729617686631,1.0448,67444.0,67435.0,0.08749835]
[1729617686937,0.3608,67436.0,67433.0,0.08749835]
[1729617687139,0.26,67434.0,67432.0,0.08766904]
[1729617687336,0.074189,67432.0,67431.0,0.08766904]
[1729617687638,0.074191,67430.0,67429.0,0.3608]
[1729617688032,0.074191,67430.0,67417.0,0.3608]
[1729617688033,0.074199,67423.0,67419.0,0.08766904]
[1729617688227,0.80572,67430.0,67417.0,0.44846904]
[1729617688228,0.074204,67418.0,67417.0,0.44846904]
[1729617688428,0.26,67418.0,67417.0,0.435006]
[1729617689235,0.334204,67418.0,67417.0,0.3608]
[1729617689443,0.336204,67418.0,67417.0,0.3838]
[1729617689832,0.781204,67418.0,67417.0,0.023]
[1729617690336,0.074219,67406.0,67405.0,0.074219]
[1729617690730,0.26,67408.0,67407.0,0.074217]
[1729617690935,0.26,67412.0,67403.0,0.3608]
[1729617691142,0.26,67412.0,67411.0,0.435012]
[1729617691543,0.334211,67412.0,67411.0,0.3608]
[1729617691734,0.334211,67412.0,67405.0,0.006]
[1729617691735,0.70504,67412.0,67405.0,0.006]
[1729617691943,0.334218,67406.0,67405.0,0.074219]
[1729617692244,0.26,67406.0,67405.0,0.074219]
[1729617692845,0.26,67406.0,67403.0,0.3608]
[1729617693148,0.07422,67404.0,67403.0,0.435021]
[1729617693336,0.07422,67404.0,67403.0,0.3608]
[1729617694545,0.074222,67402.0,67398.0,0.074226]
[1729617694736,0.3608,67404.0,67398.0,0.074226]
[1729617694737,0.074223,67401.0,67398.0,0.074226]
[1729617694938,0.074223,67401.0,67388.0,0.3608]
[1729617695146,0.074223,67401.0,67394.0,0.07423]
[1729617695147,0.3608,67397.0,67394.0,0.07423]
[1729617695336,0.00014572,67396.0,67394.0,0.07423]
[1729617695739,0.26014572,67396.0,67392.0,0.074233]
[1729617696342,0.26114572,67396.0,67392.0,0.074233]
[1729617696542,0.26114572,67396.0,67390.0,0.074234]
[1729617696739,0.26114572,67396.0,67392.0,0.074233]
[1729617697644,0.26114572,67396.0,67393.0,0.0524]
[1729617697855,0.26214572,67396.0,67393.0,0.0524]
[1729617698146,0.21015553,67396.0,67393.0,0.0524]
[1729617698345,0.21015553,67396.0,67394.0,0.074231]
[1729617698734,0.21015553,67396.0,67393.0,0.0524]
[1729617698942,0.20915553,67396.0,67393.0,0.0524]
[1729617699240,0.002,67396.0,67393.0,0.0524]
[1729617699539,0.002,67396.0,67395.0,0.07423]
[1729617700535,0.002,67396.0,67395.0,0.18250873]
[1729617700740,0.00088,67404.0,67403.0,0.074221]
[1729617700941,0.074217,67407.0,67404.0,0.07422]
[1729617701240,0.26,67408.0,67405.0,0.074218]
[1729617701638,0.26,67408.0,67393.0,0.43593711]
[1729617701838,0.074219,67406.0,67395.0,0.005]
[1729617702038,0.074219,67406.0,67396.0,0.10809194]
[1729617702234,0.074219,67406.0,67403.0,0.074221]
[1729617703134,0.07422,67405.0,67398.0,0.074226]
[1729617703341,0.26,67404.0,67401.0,0.074223]
[1729617703741,0.26,67404.0,67393.0,0.43093711]
[1729617703947,0.33423,67395.0,67394.0,0.1074212]
[1729617704149,0.26,67395.0,67394.0,0.1816522]
[1729617704646,0.26,67395.0,67393.0,0.07013711]
[1729617704841,0.3608,67397.0,67395.0,0.074229]
[1729617705162,0.3608,67397.0,67396.0,0.074229]
[1729617705640,0.3608,67397.0,67396.0,0.18184365]
[1729617706049,0.3608,67397.0,67396.0,0.62696365]
[1729617706249,0.43573957,67404.0,67403.0,0.074221]
[1729617706449,0.07421,67413.0,67403.0,0.074221]
[1729617706643,0.3608,67417.0,67407.0,0.3608]
[1729617706843,0.00076,67421.0,67420.0,0.074202]
[1729617707043,0.3608,67425.0,67414.0,0.26]
[1729617707044,0.00088,67425.0,67414.0,0.26]
[1729617707249,0.36302589,67423.0,67422.0,0.0742]
[1729617707457,0.36302589,67423.0,67415.0,0.58450433]
[1729617707648,0.36302589,67423.0,67421.0,0.074201]
[1729617707849,0.36302589,67423.0,67415.0,0.3608]
[1729617708046,0.36302589,67423.0,67420.0,0.075202]
[1729617708047,0.001,67421.0,67420.0,0.075202]
[1729617708253,0.001,67421.0,67420.0,0.18098043]
[1729617708451,0.36302589,67423.0,67420.0,0.10577843]
[1729617708650,0.36402589,67423.0,67422.0,0.0742]
[1729617708956,0.36502589,67423.0,67422.0,0.0742]
[1729617709848,0.36402589,67423.0,67422.0,0.0742]
[1729617710851,0.36502589,67423.0,67422.0,0.0752]
[1729617711154,0.00422589,67423.0,67422.0,0.0752]
[1729617711547,0.00422589,67423.0,67422.0,0.0812]
[1729617712352,0.00422589,67423.0,67422.0,0.0752]
[1729617713055,0.00322589,67423.0,67422.0,0.0752]
[1729617713249,0.00422589,67423.0,67422.0,0.0812]
[1729617713447,0.00422589,67423.0,67422.0,0.0802]
[1729617713959,0.3608,67425.0,67424.0,0.074198]
[1729617714342,0.3608,67425.0,67422.0,0.007]
[1729617714545,0.3608,67425.0,67422.0,0.001]
[1729617714747,0.074199,67423.0,67422.0,0.006]
[1729617714951,0.03707707,67423.0,67422.0,0.11228882]
[1729617715356,0.03707707,67423.0,67422.0,0.10701268]
[1729617715552,0.03707707,67423.0,67422.0,0.11201268]
[1729617715759,0.3618,67425.0,67422.0,0.11201268]
[1729617715962,0.3618,67425.0,67422.0,0.006]
[1729617716148,0.074199,67423.0,67422.0,0.006]
[1729617716648,0.519159,67423.0,67411.0,0.07305124]
[1729617716955,0.074212,67411.0,67409.0,0.07305124]
[1729617717150,0.26,67410.0,67409.0,0.07305124]
[1729617717348,0.334213,67410.0,67409.0,0.10647834]
[1729617717753,0.26,67410.0,67409.0,0.10647834]
[1729617718158,0.334213,67410.0,67409.0,0.10647834]
[1729617718450,0.074215,67408.0,67407.0,0.07310383]
[1729617718646,0.074219,67405.0,67403.0,0.07310383]
[1729617718846,0.6208,67404.0,67400.0,0.074224]
[1729617719152,0.6208,67404.0,67401.0,0.18100829]
[1729617719348,0.6208,67404.0,67402.0,0.10678529]
[1729617719544,0.6208,67404.0,67403.0,0.10678529]
[1729617720054,0.69502,67404.0,67403.0,0.10678529]
[1729617720251,0.6208,67404.0,67403.0,0.10678529]
[1729617720646,0.69502,67404.0,67403.0,0.17995755]
[1729617720851,0.074221,67403.0,67399.0,0.08762851]
[1729617721050,0.6208,67404.0,67400.0,0.10689766]
[1729617721261,0.69502,67404.0,67403.0,0.07312195]
[1729617721467,0.3608,67404.0,67403.0,0.18001961]
[1729617721759,0.43502,67404.0,67403.0,0.18101242]
[1729617721958,0.43502,67404.0,67403.0,0.10789766]
[1729617722960,0.43502,67404.0,67403.0,0.18101574]
[1729617723255,0.43502,67404.0,67403.0,0.001]
[1729617723564,0.43502,67404.0,67391.0,0.07645946]
[1729617723565,0.8801,67404.0,67399.0,0.07311808]
[1729617723745,0.074229,67396.0,67395.0,0.07311808]
[1729617723949,0.07423,67395.0,67394.0,0.07311808]
[1729617724155,0.074231,67394.0,67393.0,0.07311808]
[1729617724368,0.074231,67394.0,67393.0,0.18051388]
[1729617725154,0.261,67395.0,67393.0,0.18050985]
[1729617725454,0.002,67395.0,67394.0,0.44355491]
[1729617725660,0.002,67395.0,67394.0,0.18355491]
[1729617725960,0.33523,67395.0,67394.0,0.10932391]
[1729617726156,0.33523,67395.0,67394.0,0.002]
[1729617726659,0.33623,67395.0,67394.0,0.003]
[1729617726861,0.07623,67395.0,67394.0,0.077231]
[1729617727062,0.07623,67395.0,67394.0,0.07609097]
[1729617727250,0.33523,67395.0,67394.0,0.001]
[1729617727452,0.33523,67395.0,67394.0,0.075231]
[1729617727965,0.33523,67395.0,67394.0,0.001]
[1729617728154,0.002,67395.0,67394.0,0.077231]
[1729617729651,0.074229,67396.0,67394.0,0.077231]
[1729617730161,0.3608,67397.0,67394.0,0.003]
[1729617730457,0.07422,67405.0,67404.0,0.07422]
[1729617730763,0.62156,67408.0,67401.0,0.07301759]
[1729617731057,0.62156,67408.0,67397.0,0.334227]
[1729617731058,0.074219,67406.0,67404.0,0.074219]
[1729617731257,0.6208,67408.0,67404.0,0.074219]
[1729617731258,0.074219,67405.0,67404.0,0.074219]
[1729617731468,0.36156,67408.0,67402.0,0.07301759]
[1729617731663,0.3608,67415.0,67414.0,0.074209]
[1729617732758,0.3648,67415.0,67414.0,0.074209]
[1729617734357,0.3628,67415.0,67414.0,0.078209]
[1729617736064,0.437008,67415.0,67414.0,0.078209]
[1729617736364,0.437008,67415.0,67414.0,0.004]
[1729617736958,0.882008,67415.0,67414.0,0.004]
[1729617737162,0.882008,67415.0,67398.0,0.07297775]
[1729617737363,0.882008,67415.0,67402.0,0.074222]
[1729617737364,0.3608,67403.0,67402.0,0.074222]
[1729617737961,0.074224,67401.0,67399.0,0.074225]
[1729617738163,0.074224,67401.0,67400.0,0.074224]
[1729617738371,0.3608,67403.0,67402.0,0.074222]
[1729617738568,0.3608,67409.0,67399.0,0.3608]
[1729617738769,0.074218,67406.0,67405.0,0.074218]
[1729617740267,0.074221,67403.0,67402.0,0.074221]
[1729617740773,0.001,67406.0,67405.0,0.074219]
[1729617741074,0.075218,67406.0,67405.0,0.074219]
[1729617741658,0.074218,67406.0,67405.0,0.074219]
[1729617743366,0.26,67406.0,67400.0,0.07297775]
[1729617743567,0.695023,67401.0,67400.0,0.07297775]
[1729617744472,0.3608,67401.0,67400.0,0.14720175]
[1729617744676,0.3618,67401.0,67400.0,0.14720175]
[1729617745377,0.3628,67401.0,67400.0,0.14720175]
[1729617745574,0.002,67401.0,67400.0,0.14720175]
[1729617745966,0.002,67401.0,67400.0,0.074224]
[1729617746162,0.001,67401.0,67400.0,0.074224]
[1729617746365,0.002,67401.0,67400.0,0.074224]
[1729617746567,0.001,67401.0,67400.0,0.074224]
[1729617746868,0.002,67401.0,67400.0,0.074224]
[1729617747768,0.001,67401.0,67400.0,0.074224]
[1729617747969,0.002,67401.0,67400.0,0.074224]
[1729617748770,0.001,67401.0,67400.0,0.09210425]
[1729617749077,0.002,67401.0,67400.0,0.09210425]
[1729617749379,0.001,67401.0,67400.0,0.01788025]
[1729617749572,0.002,67401.0,67400.0,0.074224]
[1729617750173,0.001,67401.0,67400.0,0.074224]
[1729617750379,0.002,67401.0,67400.0,0.074224]
[1729617750679,0.3628,67401.0,67400.0,0.074224]
[1729617750878,0.437023,67401.0,67400.0,0.18017299]
[1729617751069,0.437023,67401.0,67400.0,0.10594899]
[1729617752476,0.60047096,67401.0,67400.0,0.10594899]
[1729617752679,0.60047096,67401.0,67397.0,0.08762851]
[1729617752680,0.60047096,67401.0,67397.0,0.07314091]
[1729617752874,0.074228,67397.0,67396.0,0.07314091]
[1729617753175,0.26,67397.0,67395.0,0.07314091]
[1729617753367,0.074229,67396.0,67395.0,0.07314841]
[1729617753567,0.074229,67396.0,67395.0,0.17879315]
[1729617754273,0.074229,67396.0,67395.0,0.25302315]
[1729617754672,0.074229,67396.0,67395.0,0.10564474]
[1729617754869,0.335229,67396.0,67395.0,0.10564474]
[1729617755978,0.336229,67396.0,67395.0,0.10564474]
[1729617756674,0.336229,67396.0,67394.0,0.073184]
[1729617756675,0.262,67396.0,67394.0,0.073184]
[1729617756879,0.43503,67395.0,67394.0,0.073184]
[1729617757779,0.43503,67395.0,67394.0,0.17879838]
[1729617757975,0.43603,67395.0,67394.0,0.17879838]
[1729617758175,0.43603,67395.0,67394.0,0.073184]
[1729617758375,0.60603,67395.0,67394.0,0.073184]
[1729617758571,0.5318,67395.0,67394.0,0.147415]
[1729617758880,0.5318,67395.0,67394.0,0.17984833]
[1729617759080,0.60603,67395.0,67394.0,0.17984833]
[1729617759384,0.5318,67395.0,67394.0,0.17984833]
[1729617759582,0.3618,67395.0,67394.0,0.17984833]
[1729617760084,0.002,67395.0,67394.0,0.17984833]
[1729617761291,0.002,67395.0,67394.0,0.24414833]
[1729617761582,0.26424796,67401.0,67394.0,0.1875454]
[1729617761883,0.26424796,67401.0,67400.0,0.074224]
[1729617762088,0.26424796,67401.0,67400.0,0.17984133]
[1729617762481,0.26424796,67401.0,67400.0,0.26771474]
[1729617762989,0.26524796,67401.0,67400.0,0.26686769]
[1729617763289,0.26524796,67401.0,67400.0,0.17899428]
[1729617763688,0.26624796,67401.0,67400.0,0.17899428]
[1729617764176,0.26624796,67401.0,67400.0,0.30510384]
[1729617764376,0.26624796,67401.0,67400.0,0.075224]
[1729617764676,0.26624796,67401.0,67400.0,0.076224]
[1729617765381,0.26624796,67401.0,67400.0,0.077224]
[1729617765688,0.002,67401.0,67400.0,0.077224]
[1729617765887,0.00222634,67410.0,67400.0,0.44812]
[1729617766187,0.3608,67421.0,67420.0,0.074202]
[1729617768283,0.3648,67421.0,67420.0,0.074202]
[1729617769291,0.3688,67421.0,67420.0,0.074202]
[1729617770286,0.443001,67421.0,67420.0,0.074202]
[1729617775196,0.082201,67421.0,67420.0,0.074202]
[1729617775797,0.008,67421.0,67420.0,0.074202]
[1729617777391,0.082201,67421.0,67420.0,0.074202]
[1729617778799,0.008,67421.0,67420.0,0.074202]
[1729617779490,0.082201,67421.0,67420.0,0.074202]
[1729617780193,0.082201,67421.0,67410.0,0.3608]
[1729617780194,0.45296,67421.0,67410.0,0.3608]
[1729617780395,0.074216,67408.0,67407.0,0.074215]
[1729617780696,0.435016,67408.0,67407.0,0.074215]
[1729617780894,0.605016,67408.0,67407.0,0.074215]
[1729617781107,0.074218,67406.0,67397.0,0.074228]
[1729617781402,0.17,67401.0,67396.0,0.48562]
[1729617781698,0.5308,67408.0,67403.0,0.074221]
[1729617781896,0.5308,67408.0,67400.0,0.074224]
[1729617781897,0.17,67412.0,67402.0,0.17]
[1729617782099,0.17,67412.0,67411.0,0.074212]
[1729617782297,0.17,67419.0,67414.0,0.074209]
[1729617782490,0.17,67419.0,67415.0,0.074208]
[1729617782690,0.5308,67422.0,67415.0,0.244208]
[1729617783093,0.17,67419.0,67415.0,0.074208]
[1729617783296,0.5308,67416.0,67415.0,0.074208]
[1729617783586,0.5308,67416.0,67413.0,0.07421]
[1729617783787,0.5308,67416.0,67408.0,0.13008]
[1729617783995,0.17,67412.0,67411.0,0.074212]
[1729617784700,0.074215,67409.0,67405.0,0.074218]
[1729617784900,0.17,67407.0,67406.0,0.074218]
[1729617785203,0.36864,67416.0,67409.0,0.074214]
[1729617785204,0.17,67410.0,67409.0,0.074214]
[1729617785504,0.002,67412.0,67409.0,0.074214]
[1729617785894,0.076212,67412.0,67409.0,0.074214]
[1729617786096,0.074213,67411.0,67409.0,0.074214]
[1729617786399,0.3638,67416.0,67410.0,0.17747627]
[1729617786596,0.244212,67411.0,67410.0,0.07317239]
[1729617786797,0.244212,67411.0,67410.0,0.17748196]
[1729617787103,0.074213,67410.0,67406.0,0.002]
[1729617787304,0.171,67411.0,67407.0,0.10434063]
[1729617787496,0.074215,67408.0,67407.0,0.074217]
[1729617787690,0.074215,67408.0,67407.0,0.17802833]
[1729617788007,0.245212,67411.0,67409.0,0.074213]
[1729617788304,0.245212,67411.0,67410.0,0.10360169]
[1729617789000,0.245212,67411.0,67410.0,0.14746406]
[1729617789198,0.245212,67411.0,67410.0,0.17804223]
[1729617789908,0.171,67411.0,67410.0,0.17804223]
[1729617790106,0.17,67414.0,67413.0,0.07421]
[1729617790298,0.17,67414.0,67413.0,0.10382923]
[1729617790604,0.244209,67414.0,67413.0,0.10382923]
[1729617791303,0.247209,67414.0,67413.0,0.10382923]
[1729617792200,0.251209,67414.0,67413.0,0.10382923]
[1729617792408,0.251209,67414.0,67413.0,0.17803923]
[1729617793811,0.251209,67414.0,67413.0,0.1778637]
[1729617794103,0.320209,67414.0,67413.0,0.1036537]
[1729617794310,0.320209,67414.0,67412.0,0.07336061]
[1729617794503,0.31121,67413.0,67412.0,0.07336061]
[1729617794705,0.074211,67412.0,67411.0,0.07336061]
[1729617795013,0.074211,67412.0,67410.0,0.074213]
[1729617795014,0.074212,67411.0,67410.0,0.07336061]
[1729617795312,0.074212,67411.0,67410.0,0.17732999]
[1729617795513,0.519252,67411.0,67410.0,0.17732999]
[1729617795714,0.519252,67411.0,67410.0,0.07337242]
[1729617796007,0.074213,67410.0,67409.0,0.074214]
[1729617796204,0.605013,67410.0,67409.0,0.074214]
[1729617796404,0.074218,67406.0,67405.0,0.14759042]
[1729617796712,0.244218,67406.0,67405.0,0.25184164]
[1729617797412,0.244218,67406.0,67405.0,0.074218]
[1729617797615,0.244218,67406.0,67396.0,0.135428]
[1729617797616,0.074221,67403.0,67402.0,0.074221]
[1729617797812,0.074221,67403.0,67402.0,0.17844467]
[1729617798414,0.074221,67403.0,67402.0,0.1784518]
[1729617799416,0.075221,67403.0,67402.0,0.1804518]
[1729617799609,0.075221,67403.0,67402.0,0.1062308]
[1729617800006,0.075221,67403.0,67402.0,0.1804528]
[1729617800412,0.076221,67403.0,67402.0,0.1824528]
[1729617801215,0.076221,67403.0,67402.0,0.25576619]
[1729617801412,0.076221,67403.0,67402.0,0.18154419]
[1729617802009,0.076221,67403.0,67402.0,0.25576619]
[1729617802214,0.076221,67403.0,67402.0,0.25576906]
[1729617805122,0.076221,67403.0,67402.0,0.1824528]
[1729617805324,0.076221,67403.0,67402.0,0.25574703]
[1729617805531,0.002,67403.0,67402.0,0.18241932]
[1729617806825,0.076221,67403.0,67402.0,0.18241932]
[1729617807918,0.076221,67403.0,67402.0,0.18232108]
[1729617809626,0.437021,67403.0,67402.0,0.18232108]
[1729617812327,0.437021,67403.0,67402.0,0.25566912]
[1729617812823,0.3628,67403.0,67402.0,0.18232108]
[1729617813222,0.437021,67403.0,67402.0,0.18232108]
[1729617813627,0.437021,67403.0,67402.0,0.10809908]
[1729617814331,0.437021,67403.0,67402.0,0.18146581]
[1729617814924,0.437021,67403.0,67402.0,0.07736673]
[1729617816333,0.437021,67403.0,67402.0,0.18053967]
[1729617818328,0.437021,67403.0,67402.0,0.10717294]
[1729617820128,0.45519406,67403.0,67402.0,0.10717294]
[1729617821131,0.40320371,67403.0,67402.0,0.10717294]
[1729617821334,0.40320371,67403.0,67402.0,0.18139494]
[1729617821536,0.38503065,67403.0,67402.0,0.18139494]
[1729617825931,0.074221,67403.0,67402.0,0.18139494]
[1729617826127,0.435021,67403.0,67402.0,0.18139494]
[1729617826838,0.435021,67403.0,67402.0,0.18112121]
[1729617829030,0.3608,67403.0,67402.0,0.26905061]
[1729617829433,0.3608,67403.0,67402.0,0.18112121]
[1729617829735,0.435021,67403.0,67402.0,0.18112121]
[1729617830334,0.605021,67403.0,67402.0,0.18112121]
[1729617836841,0.605021,67403.0,67402.0,0.3035431]
[1729617838941,0.605021,67403.0,67402.0,0.18112121]
[1729617839343,0.605021,67403.0,67402.0,0.30356178]
[1729617840348,0.775021,67403.0,67402.0,0.10689921]
[1729617840547,0.074222,67402.0,67391.0,0.1036057]
[1729617840849,0.074234,67391.0,67390.0,0.00222551]
[1729617841143,0.074251,67377.0,67376.0,0.07425]
[1729617841337,0.074251,67377.0,67371.0,0.074256]
[1729617841338,0.074257,67372.0,67371.0,0.074256]
[1729617841539,0.17,67372.0,67369.0,0.4628857]
[1729617841739,0.074257,67371.0,67370.0,0.074256]
[1729617841944,0.074257,67371.0,67369.0,0.3608]
[1729617841945,0.17,67371.0,67369.0,0.3622]
[1729617842143,0.3608,67379.0,67369.0,0.3622]
[1729617842144,0.3608,67379.0,67369.0,0.3608]
[1729617842334,0.435048,67379.0,67377.0,0.074249]
[1729617842634,0.435048,67379.0,67377.0,0.14767219]
[1729617842635,0.244249,67378.0,67377.0,0.14767219]
[1729617843044,0.3608,67379.0,67373.0,0.17]
[1729617843241,0.17,67381.0,67378.0,0.07337555]
[1729617843548,0.17,67381.0,67380.0,0.074246]
[1729617844340,0.244245,67381.0,67380.0,0.074246]
[1729617844639,0.245245,67381.0,67380.0,0.074246]
[1729617845147,0.246245,67381.0,67380.0,0.074246]
[1729617845535,0.172,67381.0,67380.0,0.074246]
[1729617845742,1.5008,67391.0,67390.0,0.074235]
[1729617845743,0.0008,67391.0,67390.0,0.074235]
[1729617845941,0.074234,67391.0,67390.0,0.04395918]
[1729617846343,0.074238,67388.0,67387.0,0.11819718]
[1729617846543,0.244238,67388.0,67384.0,0.05861224]
[1729617846750,0.074241,67385.0,67384.0,0.05861224]
[1729617846941,0.074241,67385.0,67384.0,0.13285424]
[1729617847556,0.074241,67385.0,67384.0,0.074242]
[1729617847742,0.074241,67385.0,67384.0,0.075242]
[1729617847942,0.075241,67385.0,67384.0,0.077242]
[1729617848538,0.076241,67385.0,67384.0,0.077242]
[1729617848740,0.246241,67385.0,67384.0,0.077242]
[1729617848941,0.246241,67385.0,67384.0,0.13585424]
[1729617848942,0.002,67385.0,67384.0,0.13585424]
[1729617849246,0.002,67385.0,67384.0,0.077242]
[1729617852955,0.076241,67385.0,67384.0,0.077242]
[1729617853144,0.074241,67385.0,67384.0,0.003]
[1729617853445,0.6152,67385.0,67384.0,0.003]
[1729617853645,0.074244,67382.0,67381.0,0.3608]
[1729617854240,0.074244,67382.0,67381.0,0.435045]
[1729617855051,0.076244,67382.0,67381.0,0.439045]
[1729617855354,0.076244,67382.0,67381.0,0.3648]
[1729617857852,0.076244,67382.0,67381.0,0.004]
[1729617860053,0.074261,67367.0,67366.0,0.074259]
[1729617860242,0.244261,67367.0,67366.0,0.074259]
[1729617860746,0.244261,67367.0,67363.0,0.074265]
[1729617860747,0.17,67367.0,67363.0,0.074265]
[1729617861055,0.3608,67372.0,67356.0,0.074272]
[1729617861056,0.074271,67358.0,67356.0,0.074272]
[1729617861244,0.074271,67358.0,67357.0,0.07649857]
[1729617861954,0.244271,67358.0,67357.0,0.07649857]
[1729617862360,0.244271,67358.0,67357.0,0.074272]
[1729617863051,0.245271,67358.0,67357.0,0.074272]
[1729617863253,0.246271,67358.0,67357.0,0.075272]
[1729617869366,0.17,67373.0,67369.0,2.677e-05]
[1729617869660,0.244255,67373.0,67371.0,0.074256]
[1729617869865,0.17,67373.0,67371.0,0.074256]
[1729617870053,0.17,67373.0,67364.0,0.41935753]
[1729617870054,0.074259,67369.0,67368.0,0.074259]
[1729617870255,0.244259,67369.0,67368.0,0.074259]
[1729617871557,0.246259,67369.0,67368.0,0.074259]
[1729617872762,0.248259,67369.0,67368.0,0.074259]
[1729617872957,0.246259,67369.0,67368.0,0.074259]
[1729617873157,0.247259,67369.0,67368.0,0.074259]
[1729617873557,0.246259,67369.0,67368.0,0.074259]
[1729617873759,0.248259,67369.0,67368.0,0.074259]
[1729617874157,0.246259,67369.0,67368.0,0.074259]
[1729617874357,0.246259,67369.0,67368.0,0.075259]
[1729617875267,0.244259,67369.0,67368.0,0.076259]
[1729617875956,0.244259,67369.0,67368.0,0.074259]
[1729617876656,0.244259,67369.0,67368.0,0.075259]
[1729617877051,0.244259,67369.0,67368.0,0.076259]
[1729617877259,0.17,67369.0,67368.0,0.076259]
[1729617877467,0.244258,67369.0,67368.0,0.076259]
[1729617879164,0.244258,67369.0,67368.0,0.13481653]
[1729617880176,0.244258,67369.0,67368.0,0.076259]
[1729617880474,0.244258,67369.0,67368.0,0.13487831]
[1729617880659,0.244258,67369.0,67368.0,0.076259]
[1729617883059,0.244258,67369.0,67368.0,0.075259]
[1729617883259,0.248258,67369.0,67368.0,0.074259]
[1729617883873,0.246258,67369.0,67368.0,0.074259]
[1729617884472,0.32047611,67369.0,67368.0,0.074259]
[1729617885360,0.31847611,67369.0,67368.0,0.074259]
[1729617886472,0.31947611,67369.0,67368.0,0.074259]
[1729617887270,0.07521811,67369.0,67368.0,0.074259]
[1729617887474,0.07425,67379.0,67368.0,0.244259]
[1729617887681,0.07425,67379.0,67378.0,0.074248]
[1729617887867,0.17222691,67381.0,67377.0,0.3608]
[1729617888074,0.074249,67378.0,67377.0,0.435049]
[1729617888371,0.184249,67378.0,67377.0,0.435049]
[1729617889278,0.188249,67378.0,67377.0,0.435049]
[1729617889779,0.191249,67378.0,67377.0,0.435049]
[1729617890274,0.251249,67378.0,67377.0,0.435049]
[1729617891275,0.081249,67378.0,67377.0,0.435049]
[1729617891569,0.251249,67378.0,67377.0,0.435049]
[1729617892185,0.081249,67378.0,67377.0,0.435049]
[1729617892369,0.251249,67378.0,67377.0,0.435049]
[1729617893782,0.07425,67377.0,67376.0,0.05867163]